fUSD/lending_fUSD_20240424
["ID","MTS","AMOUNT","RATE_DAILY","PERIOD"]
[323408331,1713972655672,-1193.28,0.00011232,2]
[323408332,1713972655681,-6525.87,0.00011232,2]
[323408333,1713972655692,-2403.21,0.00011232,2]
[323408334,1713972655706,-500.0,0.00011232,2]
[323408335,1713972655716,-548.73,0.00011232,2]
[323408336,1713972655725,-4989.83,0.00011232,2]
[323408337,1713972655735,-760.02,0.00011232,2]
[323408338,1713972655745,-4065.38,0.00011232,2]
[323408339,1713972655755,-500.0,0.00011232,2]
[323408340,1713972655765,-557.65050819,0.00011232,2]
[323408341,1713972655774,-500.0,0.00011232,2]
[323408342,1713972655787,-500.0,0.00011232,2]
[323408343,1713972655797,-500.0,0.00011232,2]
[323408344,1713972655806,-1076.29,0.00011232,2]
[323408345,1713972655815,-3724.0,0.00011232,2]
[323408346,1713972655824,-7492.04,0.00011232,2]
[323408347,1713972655834,-500.0,0.00011232,2]
[323408348,1713972655844,-500.0,0.00011232,2]
[323408349,1713972655853,-500.0,0.00011232,2]
[323408350,1713972655863,-500.0,0.00011232,2]
[323408351,1713972655872,-500.0,0.00011232,2]
[323408352,1713972655882,-4329.81,0.00011232,2]
[323408353,1713972655892,-4778.51,0.00011232,2]
[323408354,1713972655902,-3147.21,0.00011232,2]
[323408355,1713972655912,-534.84,0.00011232,2]
[323408356,1713972655922,-790.71,0.00011232,2]
[323408357,1713972655932,-500.0,0.00011232,2]
[323408358,1713972655943,-3653.59,0.00011232,2]
[323408359,1713972655952,-500.0,0.00011232,2]
[323408360,1713972655962,-500.0,0.00011232,2]
[323408361,1713972655971,-12972.63,0.00011232,2]
[323408362,1713972656308,-500.0,0.00011232,2]
[323408363,1713972656319,-5641.48,0.00011232,2]
[323408364,1713972656328,-500.0,0.00011232,2]
[323408365,1713972656337,-3078.34,0.00011232,2]
[323408366,1713972656347,-500.0,0.00011232,2]
[323408367,1713972656356,-500.0,0.00011232,2]
[323408368,1713972656366,-3412.99,0.00011232,2]
[323408369,1713972656376,-500.0,0.00011232,2]
[323408370,1713972656385,-2013.09,0.00011232,2]
[323408371,1713972656395,-500.0,0.00011232,2]
[323408372,1713972656404,-781.56,0.00011232,2]
[323408373,1713972656414,-6234.96,0.00011232,2]
[323408374,1713972656424,-640.29,0.00011232,2]
[323408375,1713972656433,-500.0,0.00011232,2]
[323408376,1713972656443,-1639.01,0.00011232,2]
[323408377,1713972656453,-500.0,0.00011232,2]
[323408378,1713972656463,-500.0,0.00011232,2]
[323408379,1713972656473,-1922.4,0.00011232,2]
[323408380,1713972656483,-4353.75,0.00011232,2]
[323408381,1713972656493,-25725.22,0.00011232,2]
[323408382,1713972656502,-500.0,0.00011232,2]
[323408383,1713972656512,-500.0,0.00011232,2]
[323408384,1713972656521,-7612.26,0.00011232,2]
[323408385,1713972656531,-500.0,0.00011232,2]
[323408386,1713972656543,-592.9687139,0.00011232,2]
[323408387,1713972656552,-500.0,0.00011232,2]
[323408388,1713972656561,-1777.69,0.00011232,2]
[323408389,1713972656571,-1989.21,0.00011232,2]
[323408390,1713972656580,-4334.84,0.00011232,2]
[323408391,1713972656590,-3287.13,0.00011232,2]
[323408392,1713972656599,-5011.84,0.00011232,2]
[323408393,1713972656609,-4313.83,0.00011232,2]
[323408394,1713972656619,-500.0,0.00011232,2]
[323408395,1713972656628,-500.0,0.00011232,2]
[323408396,1713972656638,-2329.6,0.00011232,2]
[323408397,1713972656649,-500.0,0.00011232,2]
[323408398,1713972656660,-500.0,0.00011232,2]
[323408399,1713972656669,-2599.4,0.00011232,2]
[323408400,1713972656680,-500.0,0.00011232,2]
[323408401,1713972656690,-4982.16,0.00011232,2]
[323408402,1713972656700,-500.0,0.00011232,2]
[323408403,1713972656713,-9090.79,0.00011232,2]
[323408404,1713972656723,-2277.96,0.00011232,2]
[323408405,1713972656732,-11688.3,0.00011232,2]
[323408406,1713972656742,-500.0,0.00011232,2]
[323408407,1713972656754,-854.69,0.00011232,2]
[323408408,1713972656764,-500.0,0.00011232,2]
[323408409,1713972656774,-500.0,0.00011232,2]
[323408410,1713972656784,-4589.61,0.00011232,2]
[323408411,1713972656796,-1586.02,0.00011232,2]
[323408412,1713972656806,-1692.96,0.00011232,2]
[323408413,1713972656816,-6430.96,0.00011232,2]
[323408414,1713972656826,-1369.43,0.00011232,2]
[323408415,1713972656838,-500.0,0.00011232,2]
[323408416,1713972656848,-6194.34,0.00011232,2]
[323408417,1713972656859,-4369.05,0.00011232,2]
[323408418,1713972656869,-3386.35,0.00011232,2]
[323408419,1713972656879,-500.0,0.00011232,2]
[323408420,1713972656889,-500.0,0.00011232,2]
[323408421,1713972656900,-1138.4,0.00011232,2]
[323408422,1713972656910,-2280.22,0.00011232,2]
[323408423,1713972656919,-1653.42,0.00011232,2]
[323408424,1713972656929,-618.93875623,0.00011232,2]
[323408425,1713972656939,-431.64,0.00011232,2]
[323408426,1713972656949,-500.0,0.00011232,2]
[323408427,1713972656959,-500.0,0.00011232,2]
[323408428,1713972656969,-500.0,0.00011232,2]
[323408429,1713972656979,-8475.7,0.00011232,2]
[323408430,1713972656988,-500.0,0.00011232,2]
[323408431,1713972656998,-500.0,0.00011232,2]
[323408432,1713972657008,-724.74,0.00011232,2]
[323408433,1713972657018,-745.37,0.00011232,2]
[323408434,1713972657028,-500.0,0.00011232,2]
[323408435,1713972657042,-500.0,0.00011232,2]
[323408436,1713972657051,-16683.43,0.00011232,2]
[323408437,1713972657061,-3940.04,0.00011232,2]
[323408438,1713972657071,-1686.48,0.00011232,2]
[323408439,1713972657081,-3355.0,0.00011232,2]
[323408440,1713972657091,-500.0,0.00011232,2]
[323408441,1713972657100,-500.0,0.00011232,2]
[323408442,1713972657109,-500.0,0.00011232,2]
[323408443,1713972657119,-11869.86,0.00011232,2]
[323408444,1713972657129,-500.0,0.00011232,2]
[323408445,1713972657138,-500.0,0.00011232,2]
[323408446,1713972657147,-500.0,0.00011232,2]
[323408447,1713972657157,-500.0,0.00011232,2]
[323408448,1713972657166,-641.36,0.00011232,2]
[323408449,1713972657176,-11626.0,0.00011232,2]
[323408450,1713972657187,-3406.58,0.00011232,2]
[323408451,1713972657196,-756.21,0.00011232,2]
[323408452,1713972657206,-500.0,0.00011232,2]
[323408453,1713972657216,-500.0,0.00011232,2]
[323408454,1713972657227,-500.0,0.00011232,2]
[323408455,1713972657237,-4233.38,0.00011232,2]
[323408456,1713972657247,-519.93440877,0.00011232,2]
[323408457,1713972657256,-500.0,0.00011232,2]
[323408458,1713972657266,-3128.5,0.00011232,2]
[323408459,1713972657276,-500.0,0.00011232,2]
[323408460,1713972657290,-500.0,0.00011232,2]
[323408461,1713972657299,-500.0,0.00011232,2]
[323408462,1713972657309,-500.0,0.00011232,2]
[323408463,1713972657318,-500.0,0.00011232,2]
[323408464,1713972657327,-500.0,0.00011232,2]
[323408465,1713972657337,-1049.02,0.00011232,2]
[323408466,1713972657346,-500.0,0.00011232,2]
[323408467,1713972657356,-500.0,0.00011232,2]
[323408468,1713972657365,-500.0,0.00011232,2]
[323408469,1713972657374,-750.0,0.00011232,2]
[323408470,1713972657384,-500.0,0.00011232,2]
[323408471,1713972657393,-500.0,0.00011232,2]
[323408472,1713972657402,-500.0,0.00011232,2]
[323408473,1713972657411,-500.0,0.00011232,2]
[323408474,1713972657420,-500.0,0.00011232,2]
[323408475,1713972657430,-500.0,0.00011232,2]
[323408476,1713972657439,-579.65,0.00011232,2]
[323408477,1713972657449,-500.0,0.00011232,2]
[323408478,1713972657458,-6601.66,0.00011232,2]
[323408479,1713972657467,-500.0,0.00011232,2]
[323408480,1713972657477,-500.0,0.00011232,2]
[323408481,1713972657486,-500.0,0.00011232,2]
[323408482,1713972657496,-500.0,0.00011232,2]
[323408483,1713972657506,-640.12,0.00011232,2]
[323408484,1713972657515,-500.0,0.00011232,2]
[323408485,1713972657524,-500.0,0.00011232,2]
[323408486,1713972657534,-2607.02,0.00011232,2]
[323408487,1713972657547,-641.52,0.00011232,2]
[323408488,1713972657557,-500.0,0.00011232,2]
[323408489,1713972657566,-500.0,0.00011232,2]
[323408490,1713972657576,-500.0,0.00011232,2]
[323408491,1713972657586,-500.0,0.00011232,2]
[323408492,1713972657596,-500.0,0.00011232,2]
[323408493,1713972657606,-500.0,0.00011232,2]
[323408494,1713972657615,-500.0,0.00011232,2]
[323408495,1713972657625,-5956.68,0.00011232,2]
[323408496,1713972657634,-500.0,0.00011232,2]
[323408497,1713972657643,-3595.77,0.00011232,2]
[323408498,1713972657653,-5392.76,0.00011232,2]
[323408499,1713972657663,-500.0,0.00011232,2]
[323408500,1713972657672,-500.0,0.00011232,2]
[323408501,1713972657682,-500.0,0.00011232,2]
[323408502,1713972657692,-500.0,0.00011232,2]
[323408503,1713972657704,-530.34,0.00011232,2]
[323408504,1713972657714,-500.0,0.00011232,2]
[323408505,1713972657724,-8756.5,0.00011232,2]
[323408506,1713972657735,-585.26366029,0.00011406,2]
[323408507,1713972657744,-276.87103098,0.00011406,2]
[323408508,1713972657755,-740.07839972,0.00011415,2]
[323408509,1713972657765,-7549.26,0.00011505,2]
[323408510,1713972657774,-3610.08,0.00011505,2]
[323408511,1713972657784,-531.56,0.00011505,2]
[323408512,1713972657797,-3042.31,0.00011505,2]
[323408513,1713972657807,-3787.57,0.00011505,2]
[323408514,1713972657816,-2965.27,0.00011505,2]
[323408515,1713972657826,-1481.93,0.00011505,2]
[323408516,1713972657835,-11813.14,0.00011505,2]
[323408517,1713972657845,-17771.33,0.00011505,2]
[323408518,1713972657854,-3006.9,0.00011505,2]
[323408519,1713972657863,-4770.7,0.00011505,2]
[323408520,1713972657873,-12250.64,0.00011505,2]
[323408521,1713972657883,-2124.12,0.00011505,2]
[323408522,1713972657892,-500.0,0.00011506,2]
[323408523,1713972657902,-227.9822275,0.00011506,2]
[323408524,1713972657911,-500.0,0.00011506,2]
[323408525,1713972657921,-419.84556994,0.00011506,2]
[323408526,1713972657931,-500.0,0.00011506,2]
[323408527,1713972657940,-500.0,0.00011506,2]
[323408528,1713972657950,-500.0,0.00011506,2]
[323408529,1713972657960,-500.0,0.00011506,2]
[323408530,1713972657969,-500.0,0.00011506,2]
[323408531,1713972657979,-500.0,0.00011506,2]
[323408532,1713972657988,-500.0,0.00011506,2]
[323408533,1713972657999,-500.0,0.00011506,2]
[323408534,1713972658013,-545.78,0.00011506,2]
[323408535,1713972658024,-500.0,0.00011506,2]
[323408536,1713972658034,-500.0,0.00011506,2]
[323408537,1713972658046,-637.25,0.00011506,2]
[323408538,1713972658055,-581.24,0.00011506,2]
[323408539,1713972658067,-500.0,0.00011506,2]
[323408540,1713972658090,-500.0,0.00011506,2]
[323408541,1713972658112,-500.0,0.00011506,2]
[323408542,1713972658135,-500.0,0.00011506,2]
[323408543,1713972658158,-500.0,0.00011506,2]
[323408544,1713972658182,-500.0,0.00011506,2]
[323408545,1713972658203,-500.0,0.00011506,2]
[323408546,1713972658223,-500.0,0.00011506,2]
[323408547,1713972658232,-500.0,0.00011506,2]
[323408548,1713972658241,-500.0,0.00011506,2]
[323408549,1713972658250,-500.0,0.00011506,2]
[323408550,1713972658260,-500.0,0.00011506,2]
[323408551,1713972658269,-500.0,0.00011506,2]
[323408552,1713972658278,-500.0,0.00011506,2]
[323408553,1713972658291,-500.0,0.00011506,2]
[323408554,1713972658300,-500.0,0.00011506,2]
[323408555,1713972658309,-571.19,0.00011506,2]
[323408556,1713972658319,-500.0,0.00011506,2]
[323408557,1713972658328,-500.0,0.00011506,2]
[323408558,1713972658339,-538.21,0.00011506,2]
[323408559,1713972658349,-500.0,0.00011506,2]
[323408560,1713972658358,-500.0,0.00011506,2]
[323408561,1713972658368,-500.0,0.00011506,2]
[323408562,1713972658378,-500.0,0.00011506,2]
[323408563,1713972658387,-500.0,0.00011506,2]
[323408564,1713972658397,-500.0,0.00011506,2]
[323408565,1713972658407,-500.0,0.00011506,2]
[323408566,1713972658417,-500.0,0.00011506,2]
[323408567,1713972658427,-500.0,0.00011506,2]
[323408568,1713972658437,-500.0,0.00011506,2]
[323408569,1713972658447,-500.0,0.00011506,2]
[323408570,1713972658456,-500.0,0.00011506,2]
[323408571,1713972658466,-500.0,0.00011506,2]
[323408572,1713972658475,-500.0,0.00011506,2]
[323408573,1713972658485,-500.0,0.00011506,2]
[323408574,1713972658494,-500.0,0.00011506,2]
[323408575,1713972658504,-500.0,0.00011506,2]
[323408576,1713972658513,-500.0,0.00011506,2]
[323408577,1713972658523,-500.0,0.00011506,2]
[323408578,1713972658532,-500.0,0.00011506,2]
[323408579,1713972658545,-500.0,0.00011506,2]
[323408580,1713972658555,-500.0,0.00011506,2]
[323408581,1713972658564,-500.0,0.00011506,2]
[323408582,1713972658574,-500.0,0.00011506,2]
[323408583,1713972658583,-653.5,0.00011506,2]
[323408584,1713972658594,-500.0,0.00011506,2]
[323408585,1713972658603,-500.0,0.00011506,2]
[323408586,1713972658612,-500.0,0.00011506,2]
[323408587,1713972658621,-500.0,0.00011506,2]
[323408588,1713972658630,-500.0,0.00011506,2]
[323408589,1713972658639,-500.0,0.00011506,2]
[323408590,1713972658649,-500.0,0.00011506,2]
[323408591,1713972658658,-549.86,0.00011506,2]
[323408592,1713972658668,-500.0,0.00011506,2]
[323408593,1713972658677,-500.0,0.00011506,2]
[323408594,1713972658758,-500.0,0.00011506,2]
[323408595,1713972658767,-500.0,0.00011506,2]
[323408596,1713972658777,-500.0,0.00011506,2]
[323408597,1713972658789,-500.0,0.00011506,2]
[323408598,1713972658798,-500.0,0.00011506,2]
[323408599,1713972658808,-500.0,0.00011506,2]
[323408600,1713972658816,-500.0,0.00011506,2]
[323408601,1713972658825,-500.0,0.00011506,2]
[323408602,1713972658834,-500.0,0.00011506,2]
[323408603,1713972658844,-500.0,0.00011506,2]
[323408604,1713972658853,-500.0,0.00011506,2]
[323408605,1713972658862,-290.32,0.00011506,2]
[323408606,1713972658871,-500.0,0.00011506,2]
[323408607,1713972658880,-500.0,0.00011506,2]
[323408608,1713972658890,-528.98,0.00011506,2]
[323408609,1713972658899,-500.0,0.00011506,2]
[323408610,1713972658908,-500.0,0.00011506,2]
[323408611,1713972658918,-307.65275353,0.00011506,2]
[323408612,1713972658928,-500.0,0.00011506,2]
[323408613,1713972658938,-600.76,0.00011506,2]
[323408614,1713972658947,-500.0,0.00011506,2]
[323408615,1713972658956,-500.0,0.00011506,2]
[323408616,1713972658966,-500.0,0.00011506,2]
[323408617,1713972658975,-500.0,0.00011506,2]
[323408618,1713972658984,-500.0,0.00011506,2]
[323408619,1713972658993,-500.0,0.00011506,2]
[323408620,1713972659002,-500.0,0.00011506,2]
[323408621,1713972659012,-500.0,0.00011506,2]
[323408622,1713972659021,-500.0,0.00011506,2]
[323408623,1713972659030,-500.0,0.00011506,2]
[323408624,1713972659040,-500.0,0.00011506,2]
[323408625,1713972659049,-500.0,0.00011506,2]
[323408626,1713972659058,-500.0,0.00011506,2]
[323408627,1713972659067,-500.0,0.00011506,2]
[323408628,1713972659076,-219.93381848,0.00011506,2]
[323408629,1713972659086,-500.0,0.00011506,2]
[323408630,1713972659095,-500.0,0.00011506,2]
[323408631,1713972659106,-236.4,0.00011506,2]
[323408632,1713972659115,-647.76,0.00011506,2]
[323408633,1713972659125,-500.0,0.00011506,2]
[323408634,1713972659134,-402.9,0.00011506,2]
[323408635,1713972659144,-500.0,0.00011506,2]
[323408636,1713972659153,-500.0,0.00011506,2]
[323408637,1713972659163,-500.0,0.00011506,2]
[323408638,1713972659172,-500.0,0.00011506,2]
[323408639,1713972659182,-500.0,0.00011506,2]
[323408640,1713972659191,-500.0,0.00011506,2]
[323408641,1713972659200,-636.73,0.00011506,2]
[323408642,1713972659210,-500.0,0.00011506,2]
[323408643,1713972659219,-500.0,0.00011506,2]
[323408644,1713972659228,-500.0,0.00011506,2]
[323408645,1713972659237,-500.0,0.00011506,2]
[323408646,1713972659247,-509.2,0.00011506,2]
[323408647,1713972659256,-568.38,0.00011506,2]
[323408648,1713972659265,-500.0,0.00011506,2]
[323408649,1713972659275,-215.82,0.00011506,2]
[323408650,1713972659284,-232.88,0.00011506,2]
[323408651,1713972659294,-180.72,0.00011506,2]
[323408652,1713972659304,-500.0,0.00011506,2]
[323408653,1713972659314,-500.0,0.00011506,2]
[323408654,1713972659323,-184.92,0.00011506,2]
[323408655,1713972659332,-500.0,0.00011506,2]
[323408656,1713972659342,-500.0,0.00011506,2]
[323408657,1713972659351,-500.0,0.00011506,2]
[323408658,1713972659360,-500.0,0.00011506,2]
[323408659,1713972659370,-500.0,0.00011506,2]
[323408660,1713972659379,-500.0,0.00011506,2]
[323408661,1713972659388,-500.0,0.00011506,2]
[323408662,1713972659398,-198.0,0.00011506,2]
[323408663,1713972659407,-500.0,0.00011506,2]
[323408664,1713972659416,-500.0,0.00011506,2]
[323408665,1713972659425,-194.82,0.00011506,2]
[323408666,1713972659434,-500.0,0.00011506,2]
[323408667,1713972659443,-500.0,0.00011506,2]
[323408668,1713972659453,-349.7,0.00011506,2]
[323408669,1713972659462,-500.0,0.00011506,2]
[323408670,1713972659471,-500.0,0.00011506,2]
[323408671,1713972659480,-500.0,0.00011506,2]
[323408672,1713972659490,-243.66,0.00011506,2]
[323408673,1713972659498,-324.62,0.00011506,2]
[323408674,1713972659508,-505.06489058,0.00011506,2]
[323408675,1713972659517,-500.0,0.00011506,2]
[323408676,1713972659526,-500.0,0.00011506,2]
[323408677,1713972659535,-500.0,0.00011506,2]
[323408678,1713972659545,-309.04,0.00011506,2]
[323408679,1713972659553,-500.0,0.00011506,2]
[323408680,1713972659562,-522.54,0.00011506,2]
[323408681,1713972659571,-551.42,0.00011506,2]
[323408682,1713972659580,-500.0,0.00011506,2]
[323408683,1713972659589,-832.84,0.00011506,2]
[323408684,1713972659598,-500.0,0.00011506,2]
[323408685,1713972659607,-500.0,0.00011506,2]
[323408686,1713972659615,-500.0,0.00011506,2]
[323408687,1713972659624,-500.0,0.00011506,2]
[323408688,1713972659633,-500.0,0.00011506,2]
[323408689,1713972659642,-500.0,0.00011506,2]
[323408690,1713972659650,-500.0,0.00011506,2]
[323408691,1713972659659,-500.0,0.00011506,2]
[323408692,1713972659668,-500.0,0.00011506,2]
[323408693,1713972659677,-500.0,0.00011506,2]
[323408694,1713972659685,-500.0,0.00011506,2]
[323408695,1713972659696,-304.36,0.00011506,2]
[323408696,1713972659706,-500.0,0.00011506,2]
[323408697,1713972659715,-625.43851315,0.00011506,2]
[323408698,1713972659724,-500.0,0.00011506,2]
[323408699,1713972659733,-543.44,0.00011506,2]
[323408700,1713972659742,-923.07,0.00011506,2]
[323408701,1713972659751,-500.0,0.00011506,2]
[323408702,1713972659761,-500.0,0.00011506,2]
[323408703,1713972659771,-623.14,0.00011506,2]
[323408704,1713972659782,-500.0,0.00011506,2]
[323408705,1713972659793,-500.0,0.00011506,2]
[323408706,1713972659802,-500.0,0.00011506,2]
[323408707,1713972659811,-921.33,0.00011506,2]
[323408708,1713972659820,-500.0,0.00011506,2]
[323408709,1713972659830,-500.0,0.00011506,2]
[323408710,1713972659839,-517.06,0.00011506,2]
[323408711,1713972659849,-500.0,0.00011506,2]
[323408712,1713972659858,-837.17,0.00011506,2]
[323408713,1713972659869,-1230.56,0.00011506,2]
[323408714,1713972659878,-500.0,0.00011506,2]
[323408715,1713972659887,-500.0,0.00011506,2]
[323408716,1713972659896,-500.0,0.00011506,2]
[323408717,1713972659906,-719.93,0.00011506,2]
[323408718,1713972659915,-500.0,0.00011506,2]
[323408719,1713972659924,-500.0,0.00011506,2]
[323408720,1713972659933,-500.0,0.00011506,2]
[323408721,1713972659943,-500.0,0.00011506,2]
[323408722,1713972659953,-548.5,0.00011506,2]
[323408723,1713972659962,-810.29,0.00011506,2]
[323408724,1713972659971,-500.0,0.00011506,2]
[323408725,1713972659981,-500.0,0.00011506,2]
[323408726,1713972659991,-657.61,0.00011506,2]
[323408727,1713972660000,-1000.93,0.00011506,2]
[323408728,1713972660010,-500.0,0.00011506,2]
[323408729,1713972660020,-520.21,0.00011506,2]
[323408730,1713972660030,-569.32,0.00011506,2]
[323408731,1713972660041,-2401.63,0.00011506,2]
[323408732,1713972660051,-500.0,0.00011506,2]
[323408733,1713972660063,-500.0,0.00011506,2]
[323408734,1713972660072,-500.0,0.00011506,2]
[323408735,1713972660081,-500.0,0.00011506,2]
[323408736,1713972660090,-500.0,0.00011506,2]
[323408737,1713972660099,-592.75,0.00011506,2]
[323408738,1713972660108,-500.0,0.00011506,2]
[323408739,1713972660117,-500.0,0.00011506,2]
[323408740,1713972660126,-500.0,0.00011506,2]
[323408741,1713972660135,-500.0,0.00011506,2]
[323408742,1713972660145,-500.0,0.00011506,2]
[323408743,1713972660154,-500.0,0.00011506,2]
[323408744,1713972660163,-500.0,0.00011506,2]
[323408745,1713972660173,-500.0,0.00011506,2]
[323408746,1713972660182,-500.0,0.00011506,2]
[323408747,1713972660192,-506.51,0.00011506,2]
[323408748,1713972660201,-500.0,0.00011506,2]
[323408749,1713972660210,-500.0,0.00011506,2]
[323408750,1713972660219,-500.0,0.00011506,2]
[323408751,1713972660228,-500.0,0.00011506,2]
[323408752,1713972660237,-500.0,0.00011506,2]
[323408753,1713972660247,-500.0,0.00011506,2]
[323408754,1713972660256,-500.0,0.00011506,2]
[323408755,1713972660265,-500.0,0.00011506,2]
[323408756,1713972660275,-500.0,0.00011506,2]
[323408757,1713972660284,-500.0,0.00011506,2]
[323408758,1713972660297,-690.2,0.00011506,2]
[323408759,1713972660305,-500.0,0.00011506,2]
[323408760,1713972660315,-563.01,0.00011506,2]
[323408761,1713972660325,-500.0,0.00011506,2]
[323408762,1713972660334,-500.0,0.00011506,2]
[323408763,1713972660343,-500.0,0.00011506,2]
[323408764,1713972660352,-500.0,0.00011506,2]
[323408765,1713972660361,-500.0,0.00011506,2]
[323408766,1713972660370,-500.0,0.00011506,2]
[323408767,1713972660380,-500.0,0.00011506,2]
[323408768,1713972660389,-500.0,0.00011506,2]
[323408769,1713972660399,-500.0,0.00011506,2]
[323408770,1713972660409,-735.85,0.00011506,2]
[323408771,1713972660419,-500.0,0.00011506,2]
[323408772,1713972660429,-1422.67,0.00011506,2]
[323408773,1713972660439,-1263.24,0.00011506,2]
[323408774,1713972660449,-500.0,0.00011506,2]
[323408775,1713972660458,-500.0,0.00011506,2]
[323408776,1713972660468,-500.0,0.00011506,2]
[323408777,1713972660477,-500.0,0.00011506,2]
[323408778,1713972660487,-622.25,0.00011506,2]
[323408779,1713972660496,-909.54,0.00011506,2]
[323408780,1713972660506,-500.0,0.00011506,2]
[323408781,1713972660514,-500.0,0.00011506,2]
[323408782,1713972660524,-500.0,0.00011506,2]
[323408783,1713972660534,-697.45,0.00011506,2]
[323408784,1713972660547,-500.0,0.00011506,2]
[323408785,1713972660557,-614.21,0.00011506,2]
[323408786,1713972660565,-500.0,0.00011506,2]
[323408787,1713972660574,-500.0,0.00011506,2]
[323408788,1713972660583,-500.0,0.00011506,2]
[323408789,1713972660591,-822.89,0.00011506,2]
[323408790,1713972660600,-500.0,0.00011506,2]
[323408791,1713972660609,-852.16,0.00011506,2]
[323408792,1713972660619,-821.2,0.00011506,2]
[323408793,1713972660628,-500.0,0.00011506,2]
[323408794,1713972660638,-500.0,0.00011506,2]
[323408795,1713972660647,-500.0,0.00011506,2]
[323408796,1713972660656,-500.0,0.00011506,2]
[323408797,1713972660665,-726.75,0.00011506,2]
[323408798,1713972660674,-1185.74,0.00011506,2]
[323408799,1713972660684,-312.94,0.00011506,2]
[323408800,1713972660694,-500.0,0.00011506,2]
[323408801,1713972660704,-550.13,0.00011506,2]
[323408802,1713972660716,-500.0,0.00011506,2]
[323408803,1713972660725,-1898.55,0.00011506,2]
[323408804,1713972660734,-500.0,0.00011506,2]
[323408805,1713972660743,-500.0,0.00011506,2]
[323408806,1713972660753,-500.0,0.00011506,2]
[323408807,1713972660762,-500.0,0.00011506,2]
[323408808,1713972660772,-252.52,0.00011506,2]
[323408809,1713972660783,-500.0,0.00011506,2]
[323408810,1713972660796,-500.0,0.00011506,2]
[323408811,1713972660805,-500.0,0.00011506,2]
[323408812,1713972660815,-500.0,0.00011506,2]
[323408813,1713972660824,-2419.21,0.00011506,2]
[323408814,1713972660834,-550.9,0.00011506,2]
[323408815,1713972660843,-500.0,0.00011506,2]
[323408816,1713972660852,-500.0,0.00011506,2]
[323408817,1713972660861,-490.2,0.00011506,2]
[323408818,1713972660870,-500.0,0.00011506,2]
[323408819,1713972660879,-500.0,0.00011506,2]
[323408820,1713972660889,-500.0,0.00011506,2]
[323408821,1713972660898,-500.0,0.00011506,2]
[323408822,1713972660908,-500.0,0.00011506,2]
[323408823,1713972660917,-500.0,0.00011506,2]
[323408824,1713972660927,-654.28,0.00011506,2]
[323408825,1713972660936,-1067.54,0.00011506,2]
[323408826,1713972660946,-1076.71,0.00011506,2]
[323408827,1713972660955,-3086.19,0.00011506,2]
[323408828,1713972660965,-500.0,0.00011506,2]
[323408829,1713972660974,-500.0,0.00011506,2]
[323408830,1713972660984,-633.26,0.00011506,2]